Cogmind - Beta 17 @@@ ROGUE MODE // 2026.07.21 @ 00:49:49 Player: Alicianrone Result: Destroyed by S-27 Virus with Autogun Performance ------------- Evolutions (4) 2000 Regions Visited (8) 1600 Robots Destroyed (128) 640 Value Destroyed (3754) 3754 Prototype IDs (20) 400 Alien Tech Used (0) 0 Bonus (881) 881 TOTAL SCORE: 9275 Bonus ------- High Alert Combat Kills 127 Follower Combat Kills 783 Registered with UFD 300 Met Optimus in HQ 500 Friendly Fire -829 Cogmind --------- Core Integrity 0/850 Matter 253/300 Energy 23/100 System Corruption 1% Temperature Cool (-100) Movement Core (1700) Ox33 Location -6/Lower Caves Parts ------- > --- POWER (1) -------- (None) > --- PROPULSION (4) --- (None) > --- UTILITY (7) ------ Cryofiber Web Huge Storage Unit Experimental Sensor Array Advanced Signal Interpreter Core Analyzer Hardened Medium Armor Plating > --- WEAPON (3) ------- Plasma Rifle Advanced KE Penetrator > --- INVENTORY (25) --- Enhanced Nuclear Core Makeshift Hover Unit Cryofiber Web Humpback Energy Well (350) Matter Compressor (250) Hardened Medium Armor Plating Hardened Medium Armor Plating Hardened Medium Armor Plating Enhanced Scrap Shield Authchip [Storage] Authchip [Storage] A0-MCA's Component Scanner Heavy Dispersion Rifle Heavy Neutron Cannon Advanced KE Penetrator Plasma Cutter CPS Tube (2) Thunder Hammer DRS Beacon (Ready) DRS Beacon (Ready) Peak State ------------ > --- POWER ------------ Antimatter Reactor > --- PROPULSION ------- Wheel Wheel Wheel Overtuned Scrapsphere > --- UTILITY ---------- Cryofiber Web Advanced Heat Sink Advanced Heat Sink Huge Storage Unit Advanced Signal Interpreter Core Analyzer Centrium Light Armor Plating > --- WEAPON ----------- Heavy Dispersion Rifle Advanced KE Penetrator Advanced KE Penetrator > --- INVENTORY -------- Scrap Suit Cryofiber Web Humpback Matter Compressor Experimental Sensor Array Centrium Light Armor Plating Centrium Light Armor Plating Centrium Light Armor Plating Centrium Light Armor Plating Authchip [Storage] A0-MCA's Component Scanner System Restoration Module Heavy Neutron Cannon Gauss Rifle Heavy Rocket Launcher Plasma Cutter CPS Tube CPS Tube Thunder Hammer Vortex Trap Vortex Trap Vortex Trap DRS Beacon [Rating: 82] Favorites ----------- Power Subdweller Power Source Engine Subdweller Power Source Power Core Micro Nuclear Core Reactor Antimatter Reactor Propulsion Wheel Treads Light Treads Leg Armored Leg Wheel Wheel Hover Unit Makeshift Hover Unit Utility Huge Storage Unit Device Advanced Heat Sink Storage Huge Storage Unit Processor Advanced Signal Interpreter Hackware Hacking Suite Protection Improved Powered Armor Weapon Plasma Rifle Energy Gun Plasma Rifle Energy Cannon Subdweller Beam Cannon Ballistic Gun Light Assault Rifle Launcher Grenade Launcher Special Weapon CPS Tube Impact Weapon Heavy Flail Slashing Weapon Makeshift Axe Build | -11 -10 -10 -9 -6 -6 -6 -6 -6 ------- Run | Yrd Mat Sub Scr Fac Was Fac Low Low Slots Evolved 8 | . . . . 8 . . . . Power . | . . . . . . . . . Propulsion 2 | . . . . 2 . . . . Utility 5 | . . . . 5 . . . . Weapon 1 | . . . . 1 . . . . Parts Attached 103 | 7 11 7 10 48 6 11 1 2 Power 8 | 1 . 1 1 3 1 1 . . Engine 5 | 1 . 1 1 2 . . . . Core 2 | . . . . 1 . 1 . . Reactor 1 | . . . . . 1 . . . Propulsion 23 | 2 2 2 . 10 1 5 1 . Treads 6 | . 2 2 . 1 1 . . . Leg 1 | . . . . 1 . . . . Wheel 15 | 2 . . . 8 . 5 . . Hover 1 | . . . . . . . 1 . Flight . | . . . . . . . . . Utility 40 | 2 5 3 3 22 2 1 . 2 Device 14 | 1 1 1 . 10 1 . . . Storage 6 | 1 3 . 1 1 . . . . Processor 5 | . . . 1 4 . . . . Hackware 2 | . . . . 1 . 1 . . Protection 13 | . 1 2 1 6 1 . . 2 Artifact . | . . . . . . . . . Weapon 32 | 2 4 1 6 13 2 4 . . Energy Gun 10 | 1 . . 2 4 . 3 . . Energy Cannon 6 | . 1 1 1 3 . . . . Ballistic Gun 6 | 1 2 . . 3 . . . . Ballistic Cannon . | . . . . . . . . . Launcher 3 | . 1 . . 2 . . . . Special Weapon 4 | . . . 2 . 1 1 . . Impact Weapon 2 | . . . . 1 1 . . . Slashing Weapon 1 | . . . 1 . . . . . Piercing Weapon . | . . . . . . . . . Special Melee Weapon . | . . . . . . . . . Unidentified Prototypes 7 | . . . . 5 1 1 . . Corrupted Parts 1 | . . . . 1 . . . . System Corruption 1 | . . . . 1 . . . . Parts Lost 39 | . 1 3 . 24 . 2 3 6 Power 5 | . . 1 . 3 . . . 1 Propulsion 13 | . . 1 . 8 . 1 2 1 Utility 10 | . . 1 . 6 . . 1 2 Weapon 11 | . 1 . . 7 . 1 . 2 Highest Loss Streak 10 | . 1 2 . 10 . 2 3 5 To Critical Strikes 1 | . . . . 1 . . . . Average Backups 18 | 1 11 16 19 16 18 20 20 19 Power . | . . . . . . . 1 1 Propulsion 1 | 1 3 3 1 . . . . . Utility 11 | . 6 10 12 9 12 14 12 11 Weapon 3 | . 1 1 3 3 4 4 5 4 Tool/Special . | . . . . . . . . . Unused Backups 60 | . 1 1 26 4 12 2 3 11 Power 6 | . . . 4 . 1 . . 1 Propulsion 7 | . . . 6 . 1 . . . Utility 37 | . 1 1 11 3 8 1 3 9 Weapon 9 | . . . 5 1 2 1 . . Tool/Special 1 | . . . . . . . . 1 Average Slot Usage (%) 92 | . 99 97 93 80 99 99 94 79 Engine 8 | . 14 13 13 5 . . . . Reactor 2 | . . . . . 5 5 6 5 Treads 4 | . 15 19 . 1 . 2 . . Wheel 17 | . 12 8 27 16 24 23 16 . Hover 1 | . . . . . . . 4 5 Device 11 | . 13 9 . 14 20 19 19 19 Storage 10 | . 14 14 14 6 6 6 6 6 Processor 6 | . . . 1 9 13 13 13 13 Protection 6 | . . 4 10 2 6 5 6 6 Energy Gun 9 | . 3 . 6 10 5 12 19 19 Energy Cannon 4 | . 4 5 10 4 . . . . Ballistic Gun 6 | . 19 20 . 2 13 6 . . Slashing Weapon 1 | . . . 5 . . . . . Peak Build Rating 82 | 7 8 12 25 80 82 80 79 72 Average Rating 38 | 5 7 9 19 50 79 74 73 70 On Entrance 38 | . 7 8 11 23 79 80 70 72 Avg Prop Armor Cover (%) 8 | . 12 14 . 6 2 5 2 . Naked Turns . | . . . . . . . . . Heaviest Build 219 | 14 90 95 219 117 130 130 126 130 Greatest Support 46 | 26 40 40 26 42 38 46 46 12 Greatest Overweight (x) 12 | . 8 8 8 6 4 4 12 12 Average Overweight (x) 3 | . 5 4 3 2 3 3 4 10 Largest Inventory Capacity 35 | 8 25 25 35 25 25 25 25 25 Average Capacity 24 | 7 21 25 25 25 25 25 25 25 Most Carried 25 | 2 16 25 25 25 25 25 25 25 Average Carried 21 | 1 11 16 23 24 24 24 24 23 Final Capacity 25 | 8 25 25 25 25 25 25 25 25 Final Carried 25 | 2 16 24 25 25 25 24 24 23 Scrap Suit Usage (%) 1 | . . . . 4 . . . . Parts Cannibalized 1 | . . . . 1 . . . . Class Distribution -------------------- 52% | Mutant 19% | Scavenger-Skirmisher 12% | Skirmisher 5% | Scavenger-Mutant 5% | Scavenger-Gunner Dominant Class ---------------- Mutant | -10/Materials Mutant | -10/Subcaves Mutant | -9/Scraptown Scavenger-Skirmisher | -6/Factory Scavenger-Gunner | -6/Waste Scavenger-Skirmisher | -6/Factory Scavenger-Skirmisher | -6/Lower Caves Skirmisher | -6/Lower Caves Resources | -11 -10 -10 -9 -6 -6 -6 -6 -6 ----------- Run | Yrd Mat Sub Scr Fac Was Fac Low Low Matter Collected 3539 | 281 421 354 470 1115 300 290 234 74 Remotely . | . . . . . . . . . Salvage Created 5691 | 58 739 227 102 1577 565 1303 659 461 Parts 281 | 9 52 16 14 76 12 64 18 20 Haulers Intercepted 6 | . 2 . . 1 . 3 . . Recyclers Shooed 7 | 1 1 . . 4 . 1 . . Parts Field Recycled . | . . . . . . . . . Retrieved Matter . | . . . . . . . . . Parts Self-Destructed 49 | . . 16 7 . . . 18 8 Prevented . | . . . . . . . . . Parts Restored . | . . . . . . . . . Kills | -11 -10 -10 -9 -6 -6 -6 -6 -6 ------- Run | Yrd Mat Sub Scr Fac Was Fac Low Low Combat Hostiles Destroyed 80 | . 18 6 . 22 2 13 12 7 Melee 1 | . . . . 1 . . . . Guns 45 | . 9 5 . 7 2 7 9 6 Cannons 7 | . 1 1 . 5 . . . . AOE 21 | . 8 . . 8 . 5 . . Classes Destroyed 21 | 1 7 1 . 8 2 . 1 1 Worker 14 | . 1 . . 4 . 9 . . Builder 6 | . . . . 2 . 4 . . Tunneler 4 | 3 . . . 1 . . . . Hauler 6 | . 2 . . 1 . 3 . . Recycler 5 | . 1 . . 2 . 2 . . Mechanic 1 | . . . . 1 . . . . Operator 4 | . 1 . . 1 . 2 . . Watcher 4 | . 3 . . 1 . . . . Swarmer 24 | . 9 . . 5 . 3 4 3 Grunt 28 | . 9 . . 3 . 9 4 3 Brawler 1 | . . . . 1 . . . . Duelist 2 | . . . . . . . 1 1 Protector 2 | . . . . 2 . . . . Sentry 4 | . . . . 2 . 1 1 . Hunter 8 | . . . . 6 . . 2 . Programmer 2 | . . . . 2 . . . . Behemoth 1 | . . . . 1 . . . . Compactor 2 | . . . . . 2 . . . Subdweller 6 | . . 6 . . . . . . Decomposer 3 | . . . . . . . . 3 Samaritan 2 | . . . . . . . . 2 Surgeon 1 | . . . . . . 1 . . Wasp 1 | . . . . . . 1 . . Martyr 2 | . . . . . 2 . . . Best Kill Streak 10 | 2 6 1 . 9 1 10 4 4 Combat Bots Only 7 | . 5 1 . 5 1 7 4 4 Max Kills in Single Turn 8 | 1 3 1 . 3 1 8 1 1 Gunslinging 1 | . . . . . . 1 . . Exploded 3 | . 3 . . 3 . 3 . . Melee 1 | . . . . 1 . . . . Uniques/NPCs Destroyed . | . . . . . . . . . Combat | -11 -10 -10 -9 -6 -6 -6 -6 -6 -------- Run | Yrd Mat Sub Scr Fac Was Fac Low Low Hostile Shots Fired 517 | . 69 40 . 229 . 58 49 72 Missed 152 | . 20 14 . 69 . 17 11 21 Hits 365 | . 49 26 . 160 . 41 38 51 Melee 1 | . . . . . . . 1 . Projectile 364 | . 49 26 . 160 . 41 37 51 Critical Strikes 10 | . 1 1 . 5 . 2 1 . Damage Taken 6158 | . 553 600 . 2981 50 605 569 800 Core 1071 | . 122 90 . 590 . 72 30 167 Absorbed by Shields . | . . . . . . . . . Regen/Repaired (Parts) 759 | . . . 367 3 116 273 . . Core Remaining (%) 57 | 100 . . 15 . . . . . Volleys Fired 343 | 11 60 41 4 87 22 37 52 29 Largest 3 | 2 2 2 1 3 3 3 3 3 Hottest 244 | 60 80 80 . 240 164 244 225 225 Shots Fired 681 | 22 113 73 4 160 61 81 101 66 Gun 613 | 22 100 62 . 124 59 79 101 66 Cannon 45 | . 8 9 . 28 . . . . Launcher 17 | . 5 2 . 8 . 2 . . Special 6 | . . . 4 . 2 . . . Kinetic 239 | 11 65 62 . 34 40 18 1 8 Thermal 353 | . 8 9 . 98 19 61 100 58 Explosive 17 | . 5 2 . 8 . 2 . . Electromagnetic 66 | 11 35 . . 20 . . . . Robot Hit Streak 27 | 6 13 27 6 12 17 9 11 16 Robot Miss Streak 5 | 2 4 1 . 5 2 2 4 4 Penetration Max 1 | . . . . 1 . 1 . . Secondary Targets 9 | . 1 . . 2 . 2 2 2 Max Gunslinging Chain 1 | . 1 . . 1 . 1 1 1 Shots Hit Robots 445 | 14 65 60 8 116 50 44 49 39 Core Hits 250 | 4 40 17 2 94 12 41 22 18 Critical Kills 9 | . 1 . . 1 . 6 . 1 Critical Parts Destroyed 11 | . . . . 4 4 3 . . Critical Strikes 47 | . 2 1 . 12 8 12 6 6 Burn 17 | . . . . 3 . 3 6 5 Destroy 24 | . 1 1 . 5 7 9 . 1 Corrupt 2 | . 1 . . 1 . . . . Smash 3 | . . . . 2 1 . . . Sever 1 | . . . . 1 . . . . Melee Attacks 23 | . . . 4 15 4 . . . Impact 10 | . . . . 6 4 . . . Slashing 13 | . . . 4 9 . . . . Piercing . | . . . . . . . . . Sneak Attacks 5 | . . . . 1 4 . . . Combat Hostiles . | . . . . . . . . . Follow-up Attacks . | . . . . . . . . . Damage Inflicted 13443 | 157 1095 552 230 4844 1799 2775 1079 912 Guns 8082 | 157 605 441 . 2184 1397 1307 1079 912 Cannons 674 | . 105 111 . 458 . . . . Explosions 3663 | . 385 . . 1810 . 1468 . . Melee 1024 | . . . 230 392 402 . . . Ramming . | . . . . . . . . . Kinetic 2782 | 60 267 441 . 620 947 365 . 82 Thermal 5312 | . 137 111 . 1763 450 942 1079 830 Explosive 3440 | . 353 . . 1619 . 1468 . . Electromagnetic 885 | 97 338 . . 450 . . . . Impact 571 | . . . . 169 402 . . . Slashing 453 | . . . 230 223 . . . . Piercing . | . . . . . . . . . Highest Corruption 3 | . 1 1 . 3 3 1 1 1 Average Corruption 1 | . 1 1 . 1 2 1 1 1 Corruption Purged 3 | . . . . . 3 . . . Corruption Blocked . | . . . . . . . . . Effects 71 | . 9 13 . 14 6 1 15 13 Message Errors 15 | . 1 2 . 4 2 . 3 3 Matter Fused 15 | . 3 3 . 2 . . 5 2 Heat Flow Errors 11 | . . 3 . . 3 . 4 1 Energy Discharges 10 | . 2 2 . 4 . . 1 1 Parts Rejected 1 | . 1 . . . . . . . Data Loss (minor) 12 | . 2 2 . 3 . . 1 4 Data Loss (major) 2 | . . . . 1 . . . 1 Misfires 2 | . . 1 . . . . 1 . Alerts 2 | . . . . . . 1 . 1 Weapon Failures 1 | . . . . . 1 . . . Overload Shots . | . . . . . . . . . Overflow Damage 475 | . 12 . 16 111 134 202 . . Projectiles 17 | . . . . 17 . . . . Explosions 259 | . 12 . . 45 . 202 . . Melee 199 | . . . 16 49 134 . . . Knockbacks 1 | . . . . . 1 . . . Impact 1 | . . . . . 1 . . . Kinetic . | . . . . . . . . . Secondary . | . . . . . . . . . Self-Inflicted Damage 118 | . 62 . . 45 . 11 . . Shots 4 | . 2 . . 1 . 1 . . Rammed . | . . . . . . . . . Targets Rammed . | . . . . . . . . . Kicked . | . . . . . . . . . Crushed . | . . . . . . . . . Highest Temperature 331 | 60 140 174 . 196 73 . 62 331 Average Temperature 66 | 26 33 65 . 84 35 . 30 131 Received Heat Transfer 1104 | . 162 153 . 312 . 276 75 126 Siege Activations . | . . . . . . . . . Martial Activations . | . . . . . . . . . Shielding Activations . | . . . . . . . . . Robots Disrupted . | . . . . . . . . . Combat Hostiles . | . . . . . . . . . Robots Corrupted 1 | . 1 . . . . . . . Combat Hostiles . | . . . . . . . . . Parts Fried 4 | . 1 . . 1 2 . . . Impact Corruptions 3 | . . . . 1 2 . . . Robots Melted 9 | . . . . 3 . 1 3 2 Combat Hostiles 6 | . . . . 1 . 1 3 1 Parts Melted 42 | . . 1 . 12 . 5 15 9 Heat Transferred 12118 | . 272 148 . 3751 555 1942 3050 2400 Parts Sabotaged . | . . . . . . . . . Parts Stolen 1 | . . . . . . . 1 . Parts Stripped . | . . . . . . . . . Power Chain Reactions 2 | . 1 . . 1 . . . . Alert | -11 -10 -10 -9 -6 -6 -6 -6 -6 ------- Run | Yrd Mat Sub Scr Fac Was Fac Low Low Maximum Alert Level 2 | . 1 . . 2 . 2 . . Low Security (%) 66 | 100 65 . . 76 100 19 . . Level 1 21 | . 34 . . 13 . 29 . . Level 2 12 | . . . . 9 . 51 . . Level 3 . | . . . . . . . . . Level 4 . | . . . . . . . . . Level 5 . | . . . . . . . . . High Security . | . . . . . . . . . Max Security . | . . . . . . . . . Peak Influence 694 | 5 303 . . 479 163 694 . . Initial 159 | . . . . . 159 . . . Average 167 | . 147 . . 123 36 415 . . Influence Increases 3483 | 15 689 . 15 1003 41 1215 340 165 Destroy 0b10 Robot/C 1780 | . 360 . . 580 . 460 240 140 Destroy 0b10 Robot/NC 285 | 15 40 . 15 100 . 105 5 5 Destroy Leader 314 | . 70 . . 128 . 76 20 20 Allied During Kill 429 | . . . . 75 . 354 . . Trap Triggered on 0b10 10 | . . . . . . 10 . . Successful Hack 97 | . 51 . . 14 . 32 . . Select Force Hacks 60 | . 60 . . . . . . . Disable Machine 210 | . 45 . . 60 . 105 . . Destroy Structure 208 | . 48 . . 46 41 73 . . Lose Combat Pursuer 90 | . 15 . . . . . 75 . Influence Decreases 3436 | 15 497 192 15 548 496 624 776 273 Entered New Map 639 | . . 93 . . 296 . 220 30 Time Decay 2190 | 15 487 79 15 333 180 342 526 213 Lost Part 290 | . 10 20 . 180 . 20 30 30 Lost Ally 317 | . . . . 35 20 262 . . Squads Dispatched 20 | . 3 . . 5 . 12 . . Investigation 7 | . 2 . . 1 . 4 . . Extermination 3 | . . . . 2 . 1 . . Reinforcement 5 | . 1 . . 2 . 2 . . Assault 2 | . . . . . . 2 . . Garrison 3 | . . . . . . 3 . . Intercept . | . . . . . . . . . Searches Triggered . | . . . . . . . . . Construction Impeded . | . . . . . . . . . Haulers Reinforced 1 | . . . . 1 . . . . Active Scanning Responses . | . . . . . . . . . Cargo Convoy Interrupts 1 | . . . . 1 . . . . Stealth | -11 -10 -10 -9 -6 -6 -6 -6 -6 --------- Run | Yrd Mat Sub Scr Fac Was Fac Low Low Distress Signals 3 | . 2 . . . . 1 . . Communications Jammed . | . . . . . . . . . Distress Signals . | . . . . . . . . . Times Spotted 126 | . 31 5 . 40 6 18 18 8 Peak Tracking Total 11 | . 6 1 . 11 3 6 5 4 Tactical Retreats 5 | . 1 . . . 1 . 3 . Traps | -11 -10 -10 -9 -6 -6 -6 -6 -6 ------- Run | Yrd Mat Sub Scr Fac Was Fac Low Low Traps Triggered 5 | . 3 . . 1 . 1 . . Indirectly . | . . . . . . . . . Trap Hack Attempts . | . . . . . . . . . Triggered . | . . . . . . . . . Disarmed . | . . . . . . . . . Reprogrammed . | . . . . . . . . . Reused 1 | . . . . . . 1 . . Traps Extracted . | . . . . . . . . . Installed 4 | . . . . 1 . 3 . . Triggered 1 | . . . . . . 1 . . Most Traps Carried 4 | . . 1 4 4 3 3 . . Machines | -11 -10 -10 -9 -6 -6 -6 -6 -6 ---------- Run | Yrd Mat Sub Scr Fac Was Fac Low Low Machines Disabled 15 | . 3 . . 4 . 7 1 . Max in Single Turn 4 | . 3 . . 1 . 4 1 . Garrison Access 2 | . . . . 1 . 1 . . Machines Repaired . | . . . . . . . . . Machines Dismantled . | . . . . . . . . . Machines Sabotaged . | . . . . . . . . . Overloaded Fab Kills . | . . . . . . . . . Hacking | -11 -10 -10 -9 -6 -6 -6 -6 -6 --------- Run | Yrd Mat Sub Scr Fac Was Fac Low Low Machines Accessed 31 | . 10 1 1 9 . 8 2 . Terminals 16 | . 7 . . 4 . 4 1 . Fabricators 2 | . . . . 1 . 1 . . Repair Stations 2 | . 1 . . . . 1 . . Recycling Units 3 | . 2 . . 1 . . . . Scanalyzers 3 | . . . . 2 . 1 . . Garrison Access 2 | . . . . 1 . 1 . . Total Hacks 111 | . 35 5 1 19 . 38 13 . Successful 71 | . 21 5 1 6 . 25 13 . Failed 40 | . 14 . . 13 . 13 . . Catastrophic 5 | . 1 . . 3 . 1 . . Database Lockouts . | . . . . . . . . . Manual 38 | . 24 . . 7 . 7 . . Terminals 53 | . 24 . . 11 . 11 7 . Fabricators 5 | . . . . 2 . 3 . . Repair Stations 14 | . 9 . . . . 5 . . Recycling Units 3 | . 2 . . 1 . . . . Scanalyzers 21 | . . . . 4 . 17 . . Garrison Access 3 | . . . . 1 . 2 . . Terminal Hacks 29 | . 4 5 1 2 . 4 13 . Record 18 | . . 5 . . . . 13 . Robot Schematic 1 | . 1 . . . . . . . Branch Access Points 1 | . . . . . . 1 . . Scanalyzer Index 1 | . . . . . . 1 . . Alert Level 1 | . . . . 1 . . . . Locate Traps 4 | . 2 . . 1 . 1 . . Recall Investigation 1 | . 1 . . . . . . . Hauler Manifests 1 | . . . . . . 1 . . Proto ID Catalog 1 | . . . 1 . . . . . Fabricator Hacks . | . . . . . . . . . Repair Station Hacks 9 | . 5 . . . . 4 . . Scan Component 2 | . . . . . . 2 . . Repair 2 | . . . . . . 2 . . Refit 5 | . 5 . . . . . . . Recycling Unit Hacks . | . . . . . . . . . Scanalyzer 15 | . . . . . . 15 . . Insert Component 5 | . . . . . . 5 . . Analyze 7 | . . . . . . 7 . . Retrieve Study 3 | . . . . . . 3 . . Garrison Access Hacks 1 | . . . . 1 . . . . Seal Access 1 | . . . . 1 . . . . Unauthorized Hacks 17 | . 12 . . 3 . 2 . . Terminals 13 | . 10 . . 2 . 1 . . Botnet 7 | . 4 . . 2 . 1 . . Operators 1 | . 1 . . . . . . . Skim 5 | . 5 . . . . . . . Fabricators . | . . . . . . . . . Repair Stations 1 | . . . . . . 1 . . Mechanics 1 | . . . . . . 1 . . Recycling Units 3 | . 2 . . 1 . . . . Tunnel 2 | . 2 . . . . . . . Scrapoids 1 | . . . . 1 . . . . Scanalyzers . | . . . . . . . . . Garrison Access . | . . . . . . . . . Data Cores Recovered 1 | . . . . . . 1 . . Used 1 | . . . . . . 1 . . Hacking Detections 21 | . 7 . . 7 . 7 . . Full Trace Events 3 | . . . . . . 3 . . Feedback Events 1 | . . . . . . 1 . . Corruption 1 | . . . . . . 1 . . Feedback Blocked . | . . . . . . . . . Robot Schematics Acquired 1 | . 1 . . . . . . . Robots Built . | . . . . . . . . . Authchips . | . . . . . . . . . Time . | . . . . . . . . . Total Robot Build Rating . | . . . . . . . . . Part Schematics Acquired 5 | . . . . . . 5 . . Parts Built . | . . . . . . . . . Authchips . | . . . . . . . . . Time . | . . . . . . . . . Total Part Build Rating . | . . . . . . . . . Part Studies Acquired 3 | . . . . . . 3 . . Parts Repaired 2 | . . . . . . 2 . . Time 112 | . . . . . . 112 . . Parts Recycled . | . . . . . . . . . Recycled Matter . | . . . . . . . . . Retrieved Matter . | . . . . . . . . . Retrieved Components . | . . . . . . . . . Parts Scanalyzed 5 | . . . . . . 5 . . Part Schematics Acquired 5 | . . . . . . 5 . . Parts Damaged 1 | . . . . . . 1 . . Bothacking | -11 -10 -10 -9 -6 -6 -6 -6 -6 ------------ Run | Yrd Mat Sub Scr Fac Was Fac Low Low Used RIF Installer . | . . . . . . . . . Robots Hacked . | . . . . . . . . . Non-combat . | . . . . . . . . . Combat . | . . . . . . . . . Robot Hacks Applied . | . . . . . . . . . Relay Couplers Released 3 | . . . . . . 3 . . Machine Destruction 3 | . . . . . . 3 . . Fabnet Peak Effective % . | . . . . . . . . . Robots Rewired . | . . . . . . . . . Allies Hacked . | . . . . . . . . . Hacks Repelled . | . . . . . . . . . Allies | -11 -10 -10 -9 -6 -6 -6 -6 -6 -------- Run | Yrd Mat Sub Scr Fac Was Fac Low Low Total Allies 25 | . . . 1 5 19 . . . Largest Group 20 | . . . 1 6 20 16 . . Highest-Rated Group 722 | . . . 68 214 722 557 . . Highest-Rated Ally 68 | . . . 68 68 68 46 . . Initial UFD Resources 24 | . . . . 24 21 21 21 21 Total Orders 14 | . . . 6 8 . . . . STAY 6 | . . . 3 3 . . . . FOLLOW 7 | . . . 3 4 . . . . AID 1 | . . . . 1 . . . . Ally Attacks 251 | . . . . 84 87 80 . . Total Damage 6410 | . . . . 2423 2465 1522 . . Kills 30 | . . . . 14 5 11 . . Allies Corrupted . | . . . . . . . . . Allies Melted . | . . . . . . . . . Intel | -11 -10 -10 -9 -6 -6 -6 -6 -6 ------- Run | Yrd Mat Sub Scr Fac Was Fac Low Low Active Infowar (turns) 8910 | 6 1633 1224 829 1093 287 851 1326 1661 Optics 350 | . . . . 350 . . . . Sensors 5628 | . . 969 . 534 287 851 1326 1661 Seismic 2502 | 6 1633 255 259 349 . . . . Machine Analysis 570 | . . . 570 . . . . . Robot Analysis Total . | . . . . . . . . . Derelict Logs Recovered 10 | . . 1 5 . . . 3 1 Drone Launches . | . . . . . . . . . Drone Recoveries . | . . . . . . . . . Exploration | -11 -10 -10 -9 -6 -6 -6 -6 -6 ------------- Run | Yrd Mat Sub Scr Fac Was Fac Low Low Turns Passed 14290 | 89 1668 1799 4319 1439 858 909 1460 1749 Spaces Moved 7194 | 52 813 682 2853 737 491 476 872 218 Core 3 | 3 . . . . . . . . Treads 233 | . 87 146 . . . . . . Legs . | . . . . . . . . . Wheels 6745 | 49 726 536 2853 737 491 476 872 5 Hover 213 | . . . . . . . . 213 Flight . | . . . . . . . . . Fastest Speed 50 | 50 90 175 135 103 103 105 105 250 Average Speed 164 | 88 170 207 135 128 137 123 141 758 Slowest Speed 770 | 100 240 320 210 190 140 140 250 770 Overloaded Moves . | . . . . . . . . . Propulsion Burnouts . | . . . . . . . . . Robots Hopped . | . . . . . . . . . Potential Cave-ins 2 | . . . . . . . 2 . Cave-ins Triggered . | . . . . . . . . . Exploration Rate (%) 51 | 4 98 26 89 22 95 12 89 32 Regions Visited 8 Branch Regions 4 Pre-discovered Areas 7 | . 2 1 3 . . . . 1 Known Exits Taken 3 | . 1 . . . . 1 1 . Unknown Exits Taken 3 | 1 . 1 1 . . . . . Scrap Searched 14 | . . 3 7 . . . 3 1 Spaces Dug 28 | . . . . 4 . 7 17 . Terrain Destroyed 246 | . 59 13 . 49 11 82 27 5 Melee . | . . . . . . . . . Projectile 69 | . . . . 10 11 16 27 5 AOE 177 | . 59 13 . 39 . 66 . . Terrain Rammed . | . . . . . . . . . Walls Destroyed . | . . . . . . . . . Machines Disabled . | . . . . . . . . . Actions | -11 -10 -10 -9 -6 -6 -6 -6 -6 --------- Run | Yrd Mat Sub Scr Fac Was Fac Low Low Total 9067 | 71 989 999 3312 1075 618 730 1010 263 Wait 1034 | . 66 233 314 108 75 175 52 11 Move 7187 | 51 812 681 2852 737 490 475 871 218 Hop . | . . . . . . . . . Pick Up 136 | 2 11 12 65 27 8 7 4 . Fast Attach 55 | 7 3 1 5 29 1 7 2 . Attach 37 | . 3 4 8 17 1 1 1 2 Detach 19 | . 6 . 5 6 . 1 . 1 Swap 124 | . 23 22 9 24 9 12 23 2 Drop 105 | . 5 5 46 24 8 12 5 . Fire 343 | 11 60 41 4 87 22 37 52 29 Melee 23 | . . . 4 15 4 . . . Ram . | . . . . . . . . . Kick . | . . . . . . . . . Crush . | . . . . . . . . . Escape Stasis . | . . . . . . . . . Rewire . | . . . . . . . . . Trap 4 | . . . . 1 . 3 . . Miscellaneous . | . . . . . . . . . Route ------- -11/Scrapyard -10/Materials (discovered 6 exits: [*Mat x3] / *Min x2 / *Sub) -10/Subcaves (discovered 3 exits: Mat x2 / *Scr) -9/Scraptown (discovered 2 exits: *Fac x2) -6/Factory -6/Waste -6/Factory (discovered 2 exits: *Low x2) -6/Lower Caves -6/Lower Caves (discovered 1 exit: *Fac) History --------- Turn | Location | Event 15 | -11/Scrapyard | Discovered new exit (range 15) 90 | -11/Scrapyard | Entered Materials 123 | -10/Materials | Discovered new exit (range 8) 174 | -10/Materials | Discovered new exit (range 4) 303 | -10/Materials | Build established: Mutant 510 | -10/Materials | Discovered new exit (range 10) 685 | -10/Materials | Discovered new exit (range 15) 800 | -10/Materials | Discovered new exit (range 8) 1120 | -10/Materials | Learned 2 Storage zone layouts 1262 | -10/Materials | Learned 2 Mines zone layouts 1319 | -10/Materials | Identified exit to Subcaves 1319 | -10/Materials | Learned location of 2 exits from Materials 1365 | -10/Materials | Learned 2 Storage zone layouts 1428 | -10/Materials | Learned Storage interactive machine intel 1464 | -10/Materials | Identified exit to Mines 1509 | -10/Materials | Learned 4 Recycling zone layouts 1566 | -10/Materials | Learned location of 2 exits from Materials 1758 | -10/Materials | Entered Subcaves 1759 | -10/Subcaves | Approached by a straggling Scientist 1759 | -10/Subcaves | Identified exit to Materials 1874 | -10/Subcaves | A swath of the cavern ceiling suddenly collapsed 1878 | -10/Subcaves | Scientist uncovered a shortcut to Scraptown 2314 | -10/Subcaves | Visited Clippyterm 2319 | -10/Subcaves | Learned Factory stockpile data 2319 | -10/Subcaves | Learned location of Section 7 (-3) 2526 | -10/Subcaves | Learned Materials garrison access intel 2761 | -10/Subcaves | Core integrity fell below 50% 2804 | -10/Subcaves | Core integrity fell below 20% 3557 | -10/Subcaves | Entered Scraptown 3557 | -9/Scraptown | System corruption cleaned by C-Scrubber 3815 | -9/Scraptown | Discovered new exit (range 11) 3869 | -9/Scraptown | Scanned Subdweller tech in exchange for log data 3871 | -9/Scraptown | Learned Research stockpile data 3873 | -9/Scraptown | Learned Research security intel 3874 | -9/Scraptown | Learned Factory security intel 3875 | -9/Scraptown | Learned location of 2 exits from Upper Caves 3877 | -9/Scraptown | Learned location of Warlord (-4) 3902 | -9/Scraptown | Heard Great Nut preacher, LISTEN AND RECITE! 3952 | -9/Scraptown | Visited Bundlers 4048 | -9/Scraptown | Visited Assassins FH 4071 | -9/Scraptown | Visited CR-KLE's Repair Center 4085 | -9/Scraptown | Visited Fellowship of the Rings 4364 | -9/Scraptown | Learned location of Extension (-5) 4454 | -9/Scraptown | Visited SPCMW 4497 | -9/Scraptown | Visited Shadow of the Wyrm 4553 | -9/Scraptown | Visited Red Mages 4605 | -9/Scraptown | Visited UFD Registry 4605 | -9/Scraptown | Registered with UFD as "Shockunit" 4639 | -9/Scraptown | Visited Scrap Suit Storage 4663 | -9/Scraptown | Visited A0-MCA Data Center 4671 | -9/Scraptown | Given a C- rating by A0-MCA 4676 | -9/Scraptown | Found A0-MCA's Component Scanner 4702 | -9/Scraptown | Visited Science Guys 4770 | -9/Scraptown | Delivered Scrap Shield to a Scientist 4803 | -9/Scraptown | Visited Curators Association 4875 | -9/Scraptown | Visited Infowarlord's Domain 4880 | -9/Scraptown | Found Exp. Sensor Array 4903 | -9/Scraptown | Visited Derelict Rescue Squad 4911 | -9/Scraptown | Found DRS Beacon 4932 | -9/Scraptown | Visited Botcube Research 4954 | -9/Scraptown | Visited Junk Repository 4984 | -9/Scraptown | Visited LU-1G1's Boring Crew 5011 | -9/Scraptown | Visited Science Testing Area 5078 | -9/Scraptown | Found Botcube 5130 | -9/Scraptown | Discovered new exit (range 5) 5160 | -9/Scraptown | Found Scrap Suit 5162 | -9/Scraptown | Found Scrap Suit 5641 | -9/Scraptown | Attached CPS modules to H-55 Commando 5709 | -9/Scraptown | Botcube activated 5731 | -9/Scraptown | Botcube completed mutation into treaded form, armed with 2 guns 5735 | -9/Scraptown | Attached CPS modules to Mutated Botcube 5981 | -9/Scraptown | Found Scrap Suit 6762 | -9/Scraptown | Attached CPS modules to L-31 Rogue 6764 | -9/Scraptown | Attached CPS modules to S-10 Pest 7099 | -9/Scraptown | Found Scrap Suit 7438 | -9/Scraptown | CR-KLE repaired 5 parts 7800 | -9/Scraptown | Met Optimus 7800 | -9/Scraptown | Accepted into 0bPrime 7876 | -9/Scraptown | Entered Factory 7876 | -6/Factory | Accompanied by 1 ally 7876 | -6/Factory | Evolved 8 slots: Propulsion x2, Utility x5, Weapon x1 8166 | -6/Factory | Spotted B-75 Beast 8170 | -6/Factory | Scrapoids reinforcements arrived? 8228 | -6/Factory | Found Scrap Suit 8240 | -6/Factory | Lost 5 allies 8251 | -6/Factory | Core integrity fell below 50% 8269 | -6/Factory | Destroyed B-75 Beast 8286 | -6/Factory | Lost 10 parts (1p3n1u5w) 8511 | -6/Factory | Build established: Scavenger-Mutant 8558 | -6/Factory | Discovered new exit (range 16) 8598 | -6/Factory | Identified exit to Factory 8874 | -6/Factory | Build established: Scavenger-Skirmisher 9015 | -6/Factory | Cargo convoy interrupted 9075 | -6/Factory | Lost 10 parts (1p3n4u2w) 9162 | -6/Factory | Found PL-3XN's Ring of Power 9315 | -6/Factory | Sucked down chute 9315 | -6/Factory | Entered Waste 9320 | -6/Waste | 1 allies followed down the chute 9325 | -6/Waste | Spotted C-40 Crusher 9333 | -6/Waste | Destroyed C-40 Crusher 9360 | -6/Waste | Spotted C-40 Crusher 9374 | -6/Waste | Destroyed C-40 Crusher 9392 | -6/Waste | Spotted C-40 Crusher 9392 | -6/Waste | Spotted C-40 Crusher 9397 | -6/Waste | Spotted C-40 Crusher 9452 | -6/Waste | Found Imp. Powered Armor 9477 | -6/Waste | Warlord forces began an assault 9479 | -6/Waste | Allies destroyed C-40 Crusher 9487 | -6/Waste | Allies destroyed C-40 Crusher 9541 | -6/Waste | Spotted C-40 Crusher 9546 | -6/Waste | Allies destroyed C-40 Crusher 9613 | -6/Waste | Build established: Scavenger-Gunner 9706 | -6/Waste | Discovered new exit (range 11) 9914 | -6/Waste | Attached CPS modules to R0-CEW(b) 9919 | -6/Waste | Attached CPS modules to 3C-6N5(b) 10121 | -6/Waste | Identified exit to Factory 10173 | -6/Waste | Entered Factory 10173 | -6/Factory | Accompanied by 16 allies 10229 | -6/Factory | Build established: Scavenger-Skirmisher 10269 | -6/Factory | Identified exit to Lower Caves 10497 | -6/Factory | Repaired Imp. Powered Armor 10700 | -6/Factory | Lost 7 allies 10727 | -6/Factory | Garrison activated, responded to threat 10766 | -6/Factory | Lost 3 allies 10785 | -6/Factory | Destroyed 7 combat bots 11052 | -6/Factory | Repaired Imp. Powered Armor 11082 | -6/Factory | Entered Lower Caves 11084 | -6/Lower Caves | UFD Scientist delivered a prototype 11087 | -6/Lower Caves | Found Prototype Protection 11094 | -6/Lower Caves | Learned 8 Factory zone layouts 11102 | -6/Lower Caves | Found DRS Beacon 11198 | -6/Lower Caves | Learned Armory stockpile data 11198 | -6/Lower Caves | Learned Extension stockpile data 11198 | -6/Lower Caves | Learned Research stockpile data 11198 | -6/Lower Caves | Learned Factory trap positions 11281 | -6/Lower Caves | Learned Research terminal intel 11281 | -6/Lower Caves | Learned Factory terminal intel 11281 | -6/Lower Caves | Learned Extension stockpile data 11281 | -6/Lower Caves | Learned Factory emergency access door positions 11281 | -6/Lower Caves | Identified exit to Lower Caves 11419 | -6/Lower Caves | Attracted the attention of an 0b10 base 11563 | -6/Lower Caves | Learned Factory stockpile data 11596 | -6/Lower Caves | Learned Factory interactive machine intel 11727 | -6/Lower Caves | Attracted the attention of an 0b10 checkpoint 11912 | -6/Lower Caves | Encountered a Warlord checkpoint 12112 | -6/Lower Caves | Core integrity fell below 20% 12129 | -6/Lower Caves | Lost 3 parts (2n1u) 12542 | -6/Lower Caves | Entered another Lower Caves area 12916 | -6/Lower Caves | Build established: Skirmisher 13213 | -6/Lower Caves | Discovered exit to Factory (range 6) 13607 | -6/Lower Caves | Encountered a Warlord checkpoint 14291 | -6/Lower Caves | Destroyed by S-27 Virus with Autogun Last Messages --------------- 14225_ System corrupted: Matter fused (-9). 14257_ Adv. Heat Sink destroyed. 14264_ System corrupted: Component data lost. 14265_ S-27 Virus destroyed. 14268_ Plasma Rifle+ destroyed. 14270_ Antimatter Reactor destroyed. 14274_ Lgt. Nuclear Core fries itself beyond repair. 14276_ VTOL Module fries itself beyond repair. 14277_ Slug penetrates S-27 Virus. 14277_ Destroyed VTOL Module. 14277_ Imp. Powered Armor destroyed. 14279_ Slug penetrates Wall. 14281_ Slug penetrates S-27 Virus. 14281_ S-27 Virus destroyed. 14285_ Slug penetrates Wall. 14285_ S-27 Virus suffers critical hit (Destroy). 14285_ S-27 Virus destroyed. 14287_ Autogun fries itself beyond repair. Map ----- +----------------------------------------------------+ | ???????????????????????## ??????????????????? | | ?????????????????????? ??????????????????? | | ??????????????????????? #??????############ | | ?????????????????????? #????## | | ????????????????????????# ?#### | | ?????????????????????????# % ## % ####### | | ????????????????????????????# ## #?????# | | ????????????????????????????## # ^ #####?????? | | ???????????????????????????##^ ## ##???##????? | | ???????????????????????????# # ##%# ##??? #????? | | ???????????????????????????# #%%####? #????? | | ???????????????????????????# %% ### %#????? | | ??????????????????????????## # # ## %#????? | | ????????????????#????????## % ##???? | | ?????????????? s ???????# % #???# | | ?????????????? ???????# % %#???# | | ????????????? ??????# % % ##??# | | ?????????????? ?????###### %%% #### | | ??????????????? ?##??????## % % | | ???????????????? ## ???????# | | ?????????????????? == ??????## % %% | | ??????????????????? %%%* ???????## %% ##% | | ????????????????????#;[ ????????# ## % #?# | | ?????????????????????# ###????##[ ###% %### | | ?????????????????????# ;;####?# %#?##% % | | ?????????????????????# @ #?# ###??## | | ?????????????????????## ### #?# #?????## #### | | ??????????????????????# ##?# ### ##?????# #??### | | ????????????????????? ; %???# # ####### #???## | | ???????????????????? # ???# #???# | | ??????????????????? # ???# ####### ##??## | | ?????????????????? ?# ????## # #??#### ###?# | | ????????????????? ?? ?????## ## #### #?? | | ??????????????? ??? ??????#### ### | | ?????????????? ???# ?????????# | | ?????????????? ???? ??????????####### | | ?????????????? ?????##????????????????# | | ???????????????????????????????????????# | | ???????????????????????????????????????# ### | | ???????????????????????????????????????#########?? | | ?????????????????????????????????????????????????? | | ?????????????????????????????????????????????????? | | ?????????????????????????????????????????????????? | | ?????????????????????????????????????????????????? | | ?????????????????????????????????????????????????? | | ?????????????????????????????????????????????????? | | ?????????????????????????????????????????????????? | | ?????????????????????????????????????????????????? | | ?????????????????????????????????????????????????? | | ?????????????????????????????????????????????????? | +----------------------------------------------------+ Best States ------------- Heat Dissipation 113 Coolant Potential 65 Energy Generation 21 Energy Capacity 325 Matter Stores 300 Matter Capacity 300 Sight Range 22 Robot Scan Range 20 Terrain Scan Density 10 Base Temperature (-) 100 Armor Coverage 625 Evasion (%) 42 Core Analysis 6 Recoil Reduction 2 Salvage Targeting 4 Offensive Hacking 10 Authchip Count 2 Item Schematics ----------------- Humpback | -6/Factory | Scanalyzed CPS Tube | -6/Factory | Scanalyzed Cryofiber Web | -6/Factory | Scanalyzed Hrd. Medium Armor Plating | -6/Factory | Scanalyzed Adv. KE Penetrator | -6/Factory | Scanalyzed Robot Schematics ------------------ M-13 Machinist | -10/Materials | Hacked Fabricated ------------ Nothing Repaired ---------- Imp. Powered Armor | 50% | -6/Factory Imp. Powered Armor | 50% | -6/Factory Studied --------- Com. Wheel | -6/Factory | Hacked Wheel | -6/Factory | Hacked Plasma Rifle | -6/Factory | Hacked Alien Tech Used ----------------- None Achievements -------------- None Challenges ------------ None Game ------ Seed DroneDrainedCutter Manual? 0 Play Time 01:42:35 Cumulative 954.6 hours Start 2026.07.20 @ 21:21:48 End 2026.07.21 @ 00:49:49 Sessions 3 Manual Loads 0 Difficulty Rogue Special Mode None Game No. 268 Rogue 268 Adventurer 0 Explorer 0 Win Type - Total 39 Types 12/8/9/1/2/0/3/1/1/2 Lore% 97 Gallery% 90 Achievement% 86 Wizard Run 0 Options --------- Layout 1 ASCII 0 Keyboard 0 Movement Mouse Keybinds 0 Fullscreen 2 Font 32/SmallcapsGlow Map View 50x35 Zoom Use 0% Tactical HUD 1 Map Filters NONE Filters NONE Steam 1 RUN: 6979321a-c8ae-4224-8a52-e7dff2765e71